lending/lending_fUSD_20240410
["ID","MTS","AMOUNT","RATE_DAILY","PERIOD"]
[322059072,1712734242554,-500.0,0.00019938,2]
[322059074,1712734242563,-282.51968248,0.00019938,2]
[322059076,1712734242572,-500.0,0.00019938,2]
[322059077,1712734242581,-525.28,0.00019938,2]
[322059078,1712734242590,-213.76712189,0.00019938,2]
[322059079,1712734242603,-286.23287811,0.00019938,2]
[322059080,1712734242612,-500.0,0.00019938,2]
[322059081,1712734242621,-364.87441045,0.00019938,2]
[322059082,1712734242630,-399.58595249,0.00019938,2]
[322059083,1712734242639,-500.0,0.00019938,2]
[322059084,1712734242649,-500.0,0.00019938,2]
[322059085,1712734242659,-500.0,0.00019938,2]
[322059086,1712734242668,-500.0,0.00019938,2]
[322059087,1712734242677,-500.0,0.00019938,2]
[322059088,1712734242687,-500.0,0.00019938,2]
[322059089,1712734242696,-500.0,0.00019938,2]
[322059090,1712734242705,-500.0,0.00019938,2]
[322059091,1712734242715,-616.28641874,0.00019938,2]
[322059092,1712734242724,-500.0,0.00019938,2]
[322059093,1712734242734,-383.53948254,0.00019938,2]
[322059094,1712734242744,-500.0,0.00019938,2]
[322059095,1712734242753,-500.0,0.00019938,2]
[322059096,1712734242763,-500.0,0.00019938,2]
[322059097,1712734242773,-500.0,0.00019938,2]
[322059098,1712734242782,-500.0,0.00019938,2]
[322059099,1712734242791,-178.65735776,0.00019938,2]
[322059100,1712734242800,-500.0,0.00019938,2]
[322059101,1712734242809,-500.0,0.00019938,2]
[322059102,1712734242819,-500.0,0.00019938,2]
[322059103,1712734242828,-500.0,0.00019938,2]
[322059104,1712734242837,-210.82349991,0.00019938,2]
[322059105,1712734242849,-72.64955298,0.00019938,2]
[322059106,1712734242858,-443.42544702,0.00019938,2]
[322059107,1712734243211,-56.57455298,0.00019938,2]
[322059108,1712734243220,-482.48827843,0.00019938,2]
[322059109,1712734243243,-17.51172157,0.00019938,2]
[322059110,1712734243251,-500.0,0.00019938,2]
[322059111,1712734243261,-500.0,0.00019938,2]
[322059112,1712734243270,-417.34252903,0.00019938,2]
[322059113,1712734243334,-500.89904354,0.00019936,2]
[322059114,1712734243343,-82.65747097,0.00019938,2]
[322059117,1712734243538,-500.0,0.00019938,2]
[322059118,1712734243550,-600.61577431,0.00019938,2]
[322059119,1712734243559,-500.0,0.00019938,2]
[322059120,1712734243568,-500.0,0.00019938,2]
[322059121,1712734243577,-529.66985398,0.00019938,2]
[322059122,1712734243586,-500.0,0.00019938,2]
[322059123,1712734243595,-500.0,0.00019938,2]
[322059124,1712734243604,-500.0,0.00019938,2]
[322059125,1712734243612,-500.0,0.00019938,2]
[322059126,1712734243621,-500.0,0.00019938,2]
[322059127,1712734243630,-500.0,0.00019938,2]
[322059128,1712734243639,-500.0,0.00019938,2]
[322059129,1712734243648,-500.0,0.00019938,2]
[322059130,1712734243657,-500.0,0.00019938,2]
[322059131,1712734243667,-500.0,0.00019938,2]
[322059132,1712734243677,-500.0,0.00019938,2]
[322059133,1712734243688,-500.0,0.00019938,2]
[322059134,1712734243699,-500.0,0.00019938,2]
[322059135,1712734243713,-528.43569353,0.00019938,2]
[322059136,1712734243725,-500.0,0.00019938,2]
[322059137,1712734243737,-500.0,0.00019938,2]
[322059138,1712734243748,-500.0,0.00019938,2]
[322059139,1712734243760,-500.0,0.00019938,2]
[322059140,1712734243773,-500.0,0.00019938,2]
[322059141,1712734243784,-500.0,0.00019938,2]
[322059142,1712734243795,-500.0,0.00019938,2]
[322059143,1712734243805,-542.40416691,0.00019938,2]
[322059144,1712734243815,-575.2,0.00019938,2]
[322059145,1712734243825,-500.0,0.00019938,2]
[322059146,1712734243836,-500.0,0.00019938,2]
[322059147,1712734243846,-500.0,0.00019938,2]
[322059148,1712734243858,-500.0,0.00019938,2]
[322059149,1712734243870,-500.0,0.00019938,2]
[322059150,1712734243882,-500.0,0.00019938,2]
[322059151,1712734243892,-500.0,0.00019938,2]
[322059152,1712734243902,-500.0,0.00019938,2]
[322059153,1712734243912,-500.0,0.00019938,2]
[322059154,1712734243922,-152.10638196,0.00019938,2]
[322059155,1712734243933,-500.0,0.00019938,2]
[322059156,1712734243945,-500.0,0.00019938,2]
[322059157,1712734243954,-370.84745063,0.00019938,2]
[322059158,1712734243965,-500.0,0.00019938,2]
[322059159,1712734243975,-230.45035937,0.00019938,2]
[322059160,1712734243986,-500.0,0.00019938,2]
[322059161,1712734243996,-500.0,0.00019938,2]
[322059162,1712734244006,-500.0,0.00019938,2]
[322059163,1712734244017,-500.0,0.00019938,2]
[322059164,1712734244026,-500.0,0.00019938,2]
[322059165,1712734244037,-511.14531681,0.00019938,2]
[322059166,1712734244047,-315.69752116,0.00019938,2]
[322059167,1712734244058,-517.98336886,0.00019938,2]
[322059168,1712734244070,-514.05075388,0.00019938,2]
[322059169,1712734244082,-500.0,0.00019938,2]
[322059170,1712734244091,-500.0,0.00019938,2]
[322059171,1712734244102,-500.0,0.00019938,2]
[322059172,1712734244113,-500.0,0.00019938,2]
[322059173,1712734244123,-500.0,0.00019938,2]
[322059174,1712734244133,-500.0,0.00019938,2]
[322059175,1712734244144,-512.32020258,0.00019938,2]
[322059176,1712734244155,-285.17276898,0.00019938,2]
[322059177,1712734244165,-328.6038023,0.00019938,2]
[322059178,1712734244175,-500.0,0.00019938,2]
[322059179,1712734244184,-281.27526155,0.00019938,2]
[322059180,1712734244193,-500.0,0.00019938,2]
[322059181,1712734244202,-500.0,0.00019938,2]
[322059182,1712734244211,-500.0,0.00019938,2]
[322059183,1712734244220,-500.0,0.00019938,2]
[322059184,1712734244230,-500.0,0.00019938,2]
[322059185,1712734244240,-500.0,0.00019938,2]
[322059186,1712734244249,-500.0,0.00019938,2]
[322059187,1712734244258,-517.64162019,0.00019938,2]
[322059188,1712734244268,-500.0,0.00019938,2]
[322059189,1712734244277,-507.85998274,0.00019938,2]
[322059190,1712734244288,-500.0,0.00019938,2]
[322059191,1712734244298,-513.65021235,0.00019938,2]
[322059192,1712734244307,-500.0,0.00019938,2]
[322059193,1712734244319,-510.96582619,0.00019938,2]
[322059194,1712734244329,-509.90560828,0.00019938,2]
[322059195,1712734244339,-500.0,0.00019938,2]
[322059196,1712734244350,-500.0,0.00019938,2]
[322059197,1712734244363,-500.0,0.00019938,2]
[322059198,1712734244374,-500.0,0.00019938,2]
[322059199,1712734244383,-500.0,0.00019938,2]
[322059200,1712734244394,-500.0,0.00019938,2]
[322059201,1712734244404,-500.0,0.00019938,2]
[322059202,1712734244414,-500.0,0.00019938,2]
[322059203,1712734244424,-500.0,0.00019938,2]
[322059204,1712734244436,-500.0,0.00019938,2]
[322059205,1712734244446,-500.0,0.00019938,2]
[322059206,1712734244457,-500.0,0.00019938,2]
[322059207,1712734244466,-500.0,0.00019938,2]
[322059208,1712734244476,-500.0,0.00019938,2]
[322059209,1712734244485,-500.0,0.00019938,2]
[322059210,1712734244494,-500.0,0.00019938,2]
[322059211,1712734244504,-511.23540113,0.00019938,2]
[322059212,1712734244514,-500.0,0.00019938,2]
[322059213,1712734244525,-500.0,0.00019938,2]
[322059214,1712734244535,-500.0,0.00019938,2]
[322059215,1712734244544,-510.46371632,0.00019938,2]
[322059216,1712734244554,-500.0,0.00019938,2]
[322059217,1712734244565,-500.0,0.00019938,2]
[322059218,1712734244575,-500.0,0.00019938,2]
[322059219,1712734244584,-500.0,0.00019938,2]
[322059220,1712734244595,-500.0,0.00019938,2]
[322059221,1712734244607,-500.0,0.00019938,2]
[322059222,1712734244617,-500.0,0.00019938,2]
[322059223,1712734244628,-140.30110253,0.00019938,2]
[322059224,1712734245247,-359.69889747,0.00019938,2]
[322059225,1712734245257,-500.0,0.00019938,2]
[322059226,1712734245267,-500.0,0.00019938,2]
[322059227,1712734245278,-500.0,0.00019938,2]
[322059228,1712734245288,-500.0,0.00019938,2]
[322059229,1712734245299,-500.0,0.00019938,2]
[322059230,1712734245309,-500.0,0.00019938,2]
[322059231,1712734245319,-500.0,0.00019938,2]
[322059232,1712734245329,-40.83567204,0.00019938,2]
[322059233,1712734245342,-459.16432796,0.00019938,2]
[322059234,1712734245351,-500.0,0.00019938,2]
[322059235,1712734245364,-500.0,0.00019938,2]
[322059236,1712734245373,-500.0,0.00019938,2]
[322059237,1712734245383,-500.0,0.00019938,2]
[322059238,1712734245392,-500.0,0.00019938,2]
[322059239,1712734245403,-193.31880429,0.00019938,2]
[322059240,1712734245414,-500.0,0.00019938,2]
[322059241,1712734245424,-500.0,0.00019938,2]
[322059242,1712734245435,-43.70760927,0.00019938,2]
[322059243,1712734245450,-456.29239073,0.00019938,2]
[322059244,1712734245460,-643.28323129,0.00019938,2]
[322059245,1712734245470,-500.0,0.00019938,2]
[322059246,1712734245480,-589.06894382,0.00019938,2]
[322059247,1712734245492,-1124.56,0.00019938,2]
[322059248,1712734245503,-500.0,0.00019938,2]
[322059249,1712734245513,-500.0,0.00019938,2]
[322059250,1712734245523,-507.80985263,0.00019938,2]
[322059251,1712734245533,-500.0,0.00019938,2]
[322059252,1712734245545,-500.0,0.00019938,2]
[322059253,1712734245555,-500.0,0.00019938,2]
[322059254,1712734245565,-500.0,0.00019938,2]
[322059255,1712734245576,-515.03330384,0.00019938,2]
[322059256,1712734245586,-500.0,0.00019938,2]
[322059257,1712734245597,-500.0,0.00019938,2]
[322059259,1712734245606,-500.0,0.00019938,2]
[322059260,1712734245617,-500.0,0.00019938,2]
[322059261,1712734245627,-500.0,0.00019938,2]
[322059262,1712734245637,-629.4,0.00019938,2]
[322059263,1712734245647,-500.0,0.00019938,2]
[322059264,1712734245657,-634.44253157,0.00019938,2]
[322059265,1712734245668,-545.85,0.00019938,2]
[322059266,1712734245681,-104.25977615,0.00019938,2]
[322059267,1712734245711,-395.74022385,0.00019938,2]
[322059268,1712734245722,-500.0,0.00019938,2]
[322059269,1712734245731,-579.28755263,0.00019938,2]
[322059270,1712734245742,-1344.42997066,0.00019938,2]
[322059271,1712734245754,-619.83002934,0.00019938,2]
[322059272,1712734245765,-500.0,0.00019938,2]
[322059273,1712734245776,-500.0,0.00019938,2]
[322059274,1712734245788,-500.0,0.00019938,2]
[322059275,1712734245800,-500.0,0.00019938,2]
[322059276,1712734245811,-524.6028211,0.00019938,2]
[322059277,1712734245821,-271.83654727,0.00019938,2]
[322059278,1712734245859,-665.51345273,0.00019938,2]
[322059279,1712734245872,-511.65292656,0.00019938,2]
[322059280,1712734245882,-500.0,0.00019938,2]
[322059281,1712734245892,-792.39,0.00019938,2]
[322059282,1712734245901,-512.45510417,0.00019938,2]
[322059283,1712734245910,-509.52349393,0.00019938,2]
[322059284,1712734245920,-500.0,0.00019938,2]
[322059285,1712734245930,-504.30259316,0.00019938,2]
[322059286,1712734245939,-503.92891939,0.00019938,2]
[322059287,1712734245948,-306.29187551,0.00019938,2]
[322059288,1712734246668,-89.89311493,0.00019935,2]
[322059289,1712734246688,-71.9046964,0.00019935,2]
[322059290,1712734246697,-500.0,0.00019937,2]
[322059291,1712734246707,-445.04245853,0.00019938,2]
[322059296,1712734425107,4000.0,0.0003,25]
[322059299,1712734512841,4972.37188181,0.00031742,30]
[322059302,1712734607853,25000.0,0.00031757,30]
[322059304,1712734724663,376.34,0.00016474,2]
[322059305,1712734835192,150.19813992,0.00029534,30]
[322059306,1712734835424,150.19813992,0.00029699,30]
[322059307,1712734835764,150.19813992,0.00029863,30]
[322059313,1712735158517,-324.91962363,0.00018181,2]
[322059314,1712735247343,357.52,0.00016432,2]
[322059316,1712735354101,-288.4977618,0.00018079,2]
[322059317,1712735354120,-288.4977618,0.0001808,2]
[322059318,1712735354142,-288.4977618,0.0001808,2]
[322059319,1712735354162,-1000.0,0.00018177,2]
[322059320,1712735354184,-161.79781133,0.00018178,2]
[322059321,1712735354204,-8887.75956879,0.00018178,2]
[322059322,1712735354223,-150.0,0.00018179,2]
[322059323,1712735354242,-549.68095675,0.0001818,2]
[322059324,1712735354263,-489.48,0.00018351,2]
[322059325,1712735354284,-22337.44,0.00018393,2]
[322059326,1712735354304,-937.47,0.00018428,2]
[322059327,1712735354324,-182.14,0.00018438,2]
[322059328,1712735354343,-150.0,0.00018466,2]
[322059329,1712735354364,-510.52,0.00018492,2]
[322059330,1712735354387,-159.16626768,0.00018667,2]
[322059331,1712735354407,-357.52,0.00018696,2]
[322059332,1712735354429,-167.58,0.0001877,2]
[322059333,1712735354451,-167.58,0.00018791,2]
[322059334,1712735354474,-167.58,0.00018811,2]
[322059335,1712735354493,-167.58,0.00018832,2]
[322059336,1712735354513,-167.58,0.00018853,2]
[322059337,1712735354533,-167.58,0.00018873,2]
[322059338,1712735354555,-167.58,0.00018894,2]
[322059370,1712735432001,-161.79781133,0.00018999,2]
[322059371,1712735432011,-728.41068868,0.00019,3]
[322059372,1712735432112,-521.58931132,0.00019,3]
[322059373,1712735432122,-1093.79,0.00019096,2]
[322059374,1712735432132,-1010.54,0.00019178,2]
[322059375,1712735432141,-37280.31620897,0.00019543,2]
[322059376,1712735432150,-157.08552916,0.00019544,2]
[322059377,1712735432160,-301.40372094,0.00019744,2]
[322059378,1712735432169,-152.96337254,0.00019745,2]
[322059379,1712735432179,-500.0,0.00019784,2]
[322059380,1712735432192,-200.0,0.00019785,2]
[322059381,1712735432202,-1000.0,0.00019785,2]
[322059382,1712735432211,-200.0,0.00019785,2]
[322059383,1712735432220,-500.0,0.00019785,2]
[322059384,1712735432230,-200.0,0.00019785,2]
[322059385,1712735432240,-8113.92805845,0.00019834,2]
[322059386,1712735432249,-2134.59601869,0.00019834,2]
[322059387,1712735432258,-4867.477,0.00019836,2]
[322059388,1712735432268,-514.5513,0.00019836,2]
[322059389,1712735432277,-184.28691248,0.00019849,2]
[322059390,1712735432286,-323.95947701,0.00019849,2]
[322059391,1712735432295,-478.87635389,0.00019854,2]
[322059392,1712735432305,-156.93490394,0.000199,2]
[322059393,1712735432314,-6437.81936244,0.00019932,2]
[322059394,1712735432323,-500.0,0.00019933,2]
[322059395,1712735432333,-500.0,0.00019933,2]
[322059397,1712735432342,-500.0,0.00019933,2]
[322059398,1712735432352,-756.42,0.00019933,2]
[322059400,1712735432363,-500.0,0.00019933,2]
[322059401,1712735432376,-3039.36,0.00019933,2]
[322059402,1712735432387,-818.6,0.00019933,2]
[322059403,1712735432397,-301.28609074,0.00019933,2]
[322059408,1712735432438,-1325.85390926,0.00019933,2]
[322059410,1712735432447,-661.13,0.00019933,2]
[322059412,1712735432456,-500.0,0.00019933,2]
[322059414,1712735432465,-500.0,0.00019933,2]
[322059416,1712735432475,-500.0,0.00019933,2]
[322059418,1712735432484,-1434.19,0.00019933,2]
[322059420,1712735432493,-500.0,0.00019933,2]
[322059422,1712735432502,-500.0,0.00019933,2]
[322059424,1712735432511,-500.0,0.00019934,2]
[322059426,1712735432521,-500.0,0.00019934,2]
[322059428,1712735432530,-500.0,0.00019934,2]
[322059430,1712735432540,-500.0,0.00019934,2]
[322059432,1712735432549,-540.51306851,0.00019934,2]
[322059434,1712735432558,-500.0,0.00019934,2]
[322059435,1712735432567,-500.0,0.00019934,2]
[322059437,1712735432578,-500.0,0.00019934,2]
[322059439,1712735432587,-500.0,0.00019934,2]
[322059440,1712735432596,-500.0,0.00019934,2]
[322059441,1712735432606,-534.99,0.00019934,2]
[322059442,1712735432615,-500.0,0.00019934,2]
[322059443,1712735432626,-500.0,0.00019934,2]
[322059444,1712735432635,-578.33592682,0.00019934,2]
[322059445,1712735432645,-500.0,0.00019934,2]
[322059446,1712735432655,-500.0,0.00019934,2]
[322059447,1712735432665,-500.0,0.00019934,2]
[322059448,1712735432677,-500.0,0.00019934,2]
[322059449,1712735432688,-500.0,0.00019934,2]
[322059450,1712735432697,-500.0,0.00019934,2]
[322059451,1712735432707,-500.0,0.00019934,2]
[322059452,1712735432718,-500.0,0.00019934,2]
[322059453,1712735432727,-507.05253247,0.00019934,2]
[322059454,1712735432737,-500.0,0.00019934,2]
[322059455,1712735432746,-500.0,0.00019934,2]
[322059456,1712735432758,-500.0,0.00019934,2]
[322059457,1712735432768,-500.0,0.00019934,2]
[322059458,1712735432778,-500.0,0.00019934,2]
[322059459,1712735432788,-500.0,0.00019934,2]
[322059460,1712735432798,-516.65670401,0.00019934,2]
[322059461,1712735432809,-500.0,0.00019934,2]
[322059462,1712735432819,-500.0,0.00019934,2]
[322059463,1712735432829,-500.0,0.00019934,2]
[322059464,1712735432839,-500.0,0.00019934,2]
[322059465,1712735432849,-500.0,0.00019934,2]
[322059466,1712735432858,-500.0,0.00019934,2]
[322059467,1712735432868,-500.0,0.00019934,2]
[322059468,1712735432877,-500.0,0.00019934,2]
[322059469,1712735432887,-500.0,0.00019934,2]
[322059470,1712735432898,-500.0,0.00019934,2]
[322059471,1712735432908,-500.0,0.00019934,2]
[322059472,1712735432918,-500.0,0.00019934,2]
[322059473,1712735432928,-500.0,0.00019934,2]
[322059474,1712735432939,-500.0,0.00019934,2]
[322059475,1712735432949,-500.0,0.00019934,2]
[322059476,1712735432958,-500.0,0.00019934,2]
[322059477,1712735432968,-500.0,0.00019934,2]
[322059478,1712735432979,-500.0,0.00019934,2]
[322059479,1712735432990,-500.0,0.00019934,2]
[322059480,1712735433000,-327.65343189,0.00019934,2]
[322059481,1712735433014,-172.34656811,0.00019934,2]
[322059482,1712735433025,-422.41174853,0.00019934,2]
[322059483,1712735433037,-77.58825147,0.00019934,2]
[322059484,1712735433046,-500.0,0.00019934,2]
[322059485,1712735433055,-111.22983358,0.00019934,2]
[322059486,1712735433084,-388.77016642,0.00019934,2]
[322059487,1712735433093,-500.0,0.00019934,2]
[322059488,1712735433102,-500.0,0.00019934,2]
[322059489,1712735433111,-150.0,0.00019934,2]
[322059490,1712735433121,-531.79394109,0.00019934,2]
[322059491,1712735433131,-500.0,0.00019934,2]
[322059492,1712735433141,-500.0,0.00019934,2]
[322059493,1712735433150,-165.56693168,0.00019934,2]
[322059494,1712735433161,-500.0,0.00019934,2]
[322059495,1712735433171,-688.04,0.00019934,2]
[322059496,1712735433182,-500.0,0.00019934,2]
[322059497,1712735433192,-832.27,0.00019934,2]
[322059498,1712735433202,-500.0,0.00019934,2]
[322059499,1712735433212,-500.0,0.00019934,2]
[322059500,1712735433221,-179.10296081,0.00019934,2]
[322059501,1712735433233,-320.89703919,0.00019934,2]
[322059502,1712735433242,-413.77218114,0.00019934,2]
[322059503,1712735433253,-86.22781886,0.00019934,2]
[322059504,1712735433262,-500.0,0.00019934,2]
[322059505,1712735433272,-519.56714076,0.00019934,2]
[322059559,1712735438384,-503.24925097,0.00018998,2]
[322059561,1712735438430,-496.75074903,0.00018998,2]
[322059563,1712735438441,-500.0,0.00019933,2]
[322059564,1712735438450,-500.0,0.00019933,2]
[322059565,1712735438459,-498.89073097,0.00019933,2]
[322059740,1712735440218,-1.10926903,0.00019933,2]
[322059742,1712735440228,-487.62866566,0.00019933,2]
[322059753,1712735440328,-12.37133434,0.00019933,2]
[322059755,1712735440337,-500.0,0.00019933,2]
[322059757,1712735440347,-24.52894458,0.00019934,2]
[322059759,1712735440357,-500.0,0.00019934,2]
[322059761,1712735440366,-608.09,0.00019934,2]
[322059763,1712735440375,-500.0,0.00019934,2]
[322059765,1712735440384,-500.0,0.00019934,2]
[322059767,1712735440394,-500.0,0.00019934,2]
[322059769,1712735440404,-500.0,0.00019934,2]
[322059771,1712735440413,-522.08,0.00019934,2]
[322059773,1712735440423,-167.00275144,0.00019934,2]
[322059775,1712735440432,-518.15790607,0.00019934,2]
[322059778,1712735440443,-259.5287683,0.00019934,2]
[322059779,1712735440453,-500.0,0.00019934,2]
[322059782,1712735440463,-500.0,0.00019934,2]
[322059784,1712735440472,-500.0,0.00019934,2]
[322059786,1712735440482,-500.0,0.00019934,2]
[322059788,1712735440491,-685.26,0.00019934,2]
[322059790,1712735440501,-526.73996356,0.00019934,2]
[322059791,1712735440510,-23.49033173,0.00019934,2]
[322059997,1712735443070,-500.0,0.00019933,2]
[322059998,1712735443079,-564.67358347,0.00019933,2]
[322059999,1712735443089,-476.50966827,0.00019934,2]
[322060000,1712735443098,-500.0,0.00019934,2]
[322060001,1712735443107,-500.0,0.00019934,2]
[322060002,1712735443116,-500.0,0.00019934,2]
[322060003,1712735443125,-500.0,0.00019934,2]
[322060004,1712735443134,-274.275631,0.00019934,2]
[322060005,1712735443143,-281.74149834,0.00019934,2]
[322060006,1712735443152,-523.93253201,0.00019934,2]
[322060007,1712735443165,-500.0,0.00019934,2]
[322060008,1712735443174,-527.04980593,0.00019934,2]
[322060009,1712735443184,-500.0,0.00019934,2]
[322060010,1712735443194,-500.0,0.00019934,2]
[322060011,1712735443203,-500.0,0.00019934,2]
[322060012,1712735443213,-500.0,0.00019934,2]
[322060013,1712735443222,-500.0,0.00019934,2]
[322060014,1712735443231,-500.0,0.00019934,2]
[322060015,1712735443241,-2510.61,0.00019934,2]
[322060016,1712735443250,-2713.43,0.00019934,2]
[322060017,1712735443259,-500.0,0.00019934,2]
[322060018,1712735443268,-500.0,0.00019934,2]
[322060019,1712735443278,-500.0,0.00019934,2]
[322060020,1712735443287,-500.0,0.00019934,2]
[322060021,1712735443297,-500.0,0.00019934,2]
[322060022,1712735443306,-1842.57,0.00019934,2]
[322060023,1712735443316,-500.0,0.00019934,2]
[322060024,1712735443325,-500.0,0.00019934,2]
[322060025,1712735443335,-500.0,0.00019934,2]
[322060026,1712735443344,-500.0,0.00019934,2]
[322060027,1712735443353,-500.0,0.00019934,2]
[322060028,1712735443362,-500.0,0.00019934,2]
[322060029,1712735443371,-306.29485771,0.00019934,2]
[322060030,1712735443381,-500.0,0.00019934,2]
[322060031,1712735443390,-500.0,0.00019934,2]
[322060032,1712735443399,-500.0,0.00019934,2]
[322060033,1712735443408,-562.56,0.00019934,2]
[322060034,1712735443417,-199.63449588,0.00019934,2]
[322060035,1712735443426,-626.8,0.00019934,2]
[322060036,1712735443437,-503.39,0.00019934,2]
[322060037,1712735443446,-500.0,0.00019934,2]
[322060038,1712735443455,-500.0,0.00019934,2]
[322060039,1712735443464,-500.0,0.00019934,2]
[322060040,1712735443473,-2068.07,0.00019934,2]
[322060041,1712735443483,-550.15905793,0.00019934,2]
[322060042,1712735443492,-500.0,0.00019934,2]
[322060043,1712735443501,-1225.29,0.00019934,2]
[322060044,1712735443510,-500.0,0.00019934,2]
[322060045,1712735443519,-500.0,0.00019934,2]
[322060046,1712735443528,-500.0,0.00019934,2]
[322060047,1712735443538,-555.04931707,0.00019934,2]
[322060048,1712735443547,-500.0,0.00019934,2]
[322060049,1712735443557,-500.0,0.00019934,2]
[322060050,1712735443566,-500.0,0.00019934,2]
[322060051,1712735443575,-500.0,0.00019934,2]
[322060052,1712735443584,-500.0,0.00019934,2]
[322060053,1712735443593,-500.0,0.00019934,2]
[322060054,1712735443603,-503.84,0.00019934,2]
[322060055,1712735443612,-500.0,0.00019934,2]
[322060056,1712735443621,-500.0,0.00019934,2]
[322060057,1712735443631,-500.0,0.00019934,2]
[322060058,1712735443640,-500.0,0.00019934,2]
[322060059,1712735443649,-500.0,0.00019934,2]
[322060060,1712735443658,-1108.54,0.00019934,2]
[322060061,1712735443667,-7024.4,0.00019934,2]
[322060062,1712735443677,-500.0,0.00019934,2]
[322060063,1712735443686,-500.0,0.00019934,2]
[322060064,1712735443695,-555.3,0.00019934,2]
[322060065,1712735443704,-500.0,0.00019934,2]
[322060066,1712735443714,-500.0,0.00019934,2]
[322060067,1712735443723,-500.0,0.00019934,2]
[322060068,1712735443733,-500.0,0.00019934,2]
[322060069,1712735443742,-500.0,0.00019934,2]
[322060070,1712735443752,-500.0,0.00019934,2]
[322060071,1712735443761,-500.0,0.00019934,2]
[322060072,1712735443770,-611.94,0.00019934,2]
[322060073,1712735443779,-500.0,0.00019934,2]
[322060074,1712735443789,-500.0,0.00019934,2]
[322060075,1712735443798,-500.0,0.00019934,2]
[322060076,1712735443808,-500.0,0.00019934,2]
[322060077,1712735443818,-500.0,0.00019934,2]
[322060078,1712735443827,-500.0,0.00019934,2]
[322060079,1712735443837,-535.57825023,0.00019934,2]
[322060080,1712735443846,-500.0,0.00019934,2]
[322060081,1712735443855,-500.0,0.00019934,2]
[322060082,1712735443865,-500.0,0.00019934,2]
[322060083,1712735443874,-500.0,0.00019934,2]
[322060084,1712735443883,-734.21,0.00019934,2]
[322060085,1712735443893,-500.0,0.00019934,2]
[322060086,1712735443902,-500.0,0.00019934,2]
[322060087,1712735443911,-506.61,0.00019934,2]
[322060088,1712735443920,-500.0,0.00019934,2]
[322060089,1712735443929,-500.0,0.00019934,2]
[322060090,1712735443938,-500.0,0.00019934,2]
[322060091,1712735443947,-500.0,0.00019934,2]
[322060092,1712735443956,-500.0,0.00019934,2]
[322060093,1712735443966,-500.0,0.00019934,2]
[322060094,1712735443975,-500.0,0.00019934,2]
[322060095,1712735443984,-509.76,0.00019934,2]
[322060096,1712735443993,-500.0,0.00019934,2]
[322060097,1712735444003,-500.0,0.00019934,2]
[322060098,1712735444011,-500.0,0.00019934,2]
[322060099,1712735444021,-500.0,0.00019934,2]
[322060100,1712735444030,-781.04,0.00019934,2]
[322060101,1712735444039,-500.0,0.00019934,2]
[322060102,1712735444048,-500.0,0.00019934,2]
[322060103,1712735444058,-500.0,0.00019934,2]
[322060104,1712735444067,-500.0,0.00019934,2]
[322060105,1712735444077,-1282.78,0.00019934,2]
[322060106,1712735444086,-500.0,0.00019934,2]
[322060107,1712735444096,-500.0,0.00019934,2]